[Event "FIDE World Rapid-ch Open 2018"]
[White "Danielyan, Vahe"]
[Black "Guimaraes, Diogo Duarte"]
[Site "St. Petersburg"]
[Round "15.95"]
[Annotator "NA"]
[Result "1-0"]
[Date "2018.12.28"]
[WhiteElo "2220"]
[BlackElo "2278"]
[PlyCount "147"]
[TimeControl "900+10"]

1. e4 {[%emt 0:0:17]} e5 {[%emt 0:2:38]} 2. Nf3 {[%emt 0:0:8]} Nc6 {[%emt 0:0:1]
} 3. Bb5 {[%emt 0:0:3]} Nf6 {[%emt 0:0:2]} 4. d3 {[%emt 0:0:0]} Bc5 {[%emt 0:0:33]} 5. Nc3 {[%emt 0:0:2]} a6 {[%emt 0:1:52]} 6. Bxc6 {[%emt 0:0:2]
} dxc6 {[%emt 0:0:1]} 7. Nxe5 {[%emt 0:0:9]} Qd4 {[%emt 0:0:0]} 8. Be3 {[%emt 0:0:1]} Qxe5 {[%emt 0:0:2]} 9. d4 {[%emt 0:0:0]} Qe7 {[%emt 0:0:10]
} 10. dxc5 Nxe4 11. Qd4 {[%emt 0:0:8]} Bf5 {[%emt 0:0:27]} 12. Qxg7 {[%emt 0:0:20]} 0-0-0 {[%emt 0:0:3]} 13. Rd1 {[%emt 0:1:54]} Rde8 {[%emt 0:1:43]
} 14. Nxe4 {[%emt 0:2:28]} Qxe4 {[%emt 0:1:1]} 15. Qc3 {[%emt 0:0:4]
} Bg4 {[%emt 0:1:45]} 16. f3 {[%emt 0:1:55]} Qxe3+ {[%emt 0:0:0]} 17. Qxe3 {[%emt 0:0:1]} Rxe3+ {[%emt 0:0:1]} 18. Kd2 {[%emt 0:0:0]} Rhe8 {[%emt 0:0:2]} 19. fxg4 {[%emt 0:0:1]} Re2+ {[%emt 0:0:1]} 20. Kc1 {[%emt 0:0:18]
} Rxg2 {[%emt 0:0:4]} 21. Rd2 {[%emt 0:0:5]} Rxg4 {[%emt 0:0:0]} 22. Rf1 {[%emt 0:0:1]} Re7 {[%emt 0:0:35]} 23. Rfd1 {[%emt 0:0:8]} Rg8 {[%emt 0:1:20]} 24. Rf1 {[%emt 0:0:1]} Rf8 {[%emt 0:0:17]} 25. Rdf2 {[%emt 0:0:0]
} Kd7 {[%emt 0:0:9]} 26. Rf6 {[%emt 0:0:7]} Ke8 {[%emt 0:0:0]} 27. R6f3 {[%emt 0:0:6]} Re5 {[%emt 0:0:11]} 28. Rb3 {[%emt 0:0:1]} Rxc5 {[%emt 0:0:9]} 29. Rxb7 {[%emt 0:0:1]} Kd7 {[%emt 0:0:6]} 30. Rd1+ {[%emt 0:0:1]
} Kc8 {[%emt 0:0:10]} 31. Ra7 {[%emt 0:0:1]} Kb8 {[%emt 0:0:0]} 32. Rxa6 {[%emt 0:0:3]} Rg8 {[%emt 0:0:17]} 33. Ra4 {[%emt 0:0:39]} Rg2 {[%emt 0:0:3]} 34. Rd2 {[%emt 0:0:15]} Rg1+ {[%emt 0:0:58]} 35. Rd1 {[%emt 0:0:1]
} Rg2 {[%emt 0:0:3]} 36. Rd2 {[%emt 0:0:2]} Rg6 {[%emt 0:0:0]} 37. b3 {[%emt 0:0:5]} Rh6 {[%emt 0:0:7]} 38. Rf4 {[%emt 0:0:3]} f5 {[%emt 0:0:7]
} 39. Re2 {[%emt 0:0:5]} Kc8 {[%emt 0:0:7]} 40. c4 {[%emt 0:0:0]} Ra5 {[%emt 0:0:11]} 41. Kb2 {[%emt 0:0:1]} Rh5 {[%emt 0:0:2]} 42. a4 {[%emt 0:0:2]} Kd7 {[%emt 0:0:6]} 43. Rd4+ {[%emt 0:0:10]} Kc8 {[%emt 0:0:3]
} 44. Re8+ {[%emt 0:0:2]} Kb7 {[%emt 0:0:4]} 45. c5 {[%emt 0:0:0]} Rxc5 {[%emt 0:0:19]} 46. Rb4+ {[%emt 0:0:1]} Ka7 {[%emt 0:0:4]} 47. Rbb8 {[%emt 0:0:1]} Rxh2+ {[%emt 0:0:58]} 48. Ka3 {[%emt 0:0:1]} Rd5 {[%emt 0:0:1]
} 49. Rf8 {[%emt 0:3:19]} h5 {[%emt 0:0:28]} 50. Rg8 {[%emt 0:0:0]} Re2 {[%emt 0:0:14]} 51. Rh8 {[%emt 0:0:10]} h4 {[%emt 0:0:6]} 52. Ra8+ {[%emt 0:0:4]} Kb6 {[%emt 0:0:2]} 53. Rxh4 {[%emt 0:0:5]} c5 {[%emt 0:0:14]
} 54. Rh6+ {[%emt 0:0:3]} Kb7 {[%emt 0:0:8]} 55. Ra5 {[%emt 0:0:6]
} f4 {[%emt 0:0:53]} 56. Rf6 {[%emt 0:0:3]} Rf2 {[%emt 0:0:0]} 57. Rb5+ {[%emt 0:0:2]} Ka7 {[%emt 0:0:45]} 58. Rc6 {[%emt 0:0:7]} f3 {[%emt 0:0:11]} 59. Rxc7+ {[%emt 0:0:2]} Ka6 {[%emt 0:0:8]} 60. Rc6+ {[%emt 0:0:2]
} Ka7 {[%emt 0:0:1]} 61. Rcxc5 {[%emt 0:0:25]} Rxc5 {[%emt 0:0:0]} 62. Rxc5 {[%emt 0:0:1]} Rg2 {[%emt 0:0:1]} 63. Rf5 {[%emt 0:0:16]} f2 {[%emt 0:0:3]} 64. a5 {[%emt 0:0:4]} Ka6 {[%emt 0:0:41]} 65. Ka4 {[%emt 0:0:12]
} Kb7 {[%emt 0:1:3]} 66. b4 {[%emt 0:0:4]} Rh2 {[%emt 0:0:0]} 67. Rf7+ {[%emt 0:0:5]} Kb8 {[%emt 0:0:1]} 68. a6 {[%emt 0:0:9]} Rh6 {[%emt 0:0:38]} 69. b5 {[%emt 0:0:17]} Rh2 {[%emt 0:0:10]} 70. Ka5 {[%emt 0:0:0]} Rg2 {[%emt 0:0:3]} 71. Rf8+ {[%emt 0:0:8]} Kc7 {[%emt 0:0:2]} 72. b6+ {[%emt 0:0:8]} Kc6 {[%emt 0:0:2]} 73. a7 {[%emt 0:0:38]} Rg5+ {[%emt 0:0:16]
} 74. Ka6 {[%emt 0:0:7]} 1-0

[Event "FIDE World Rapid-ch Open 2018"]
[White "Dubrovin, Robert"]
[Black "Al Thebaiti, Ahmed M"]
[Site "St. Petersburg"]
[Round "15.96"]
[Annotator "NA"]
[Result "1-0"]
[Date "2018.12.28"]
[WhiteElo "2220"]
[BlackElo "1976"]
[PlyCount "117"]
[TimeControl "900+10"]

1. d4 {[%emt 0:0:0]} d5 {[%emt 0:0:0]} 2. c4 {[%emt 0:0:0]} dxc4 {[%emt 0:0:0]
} 3. Nf3 {[%emt 0:0:0]} Nf6 {[%emt 0:0:0]} 4. e3 {[%emt 0:0:0]} e6 {[%emt 0:0:3]} 5. Bxc4 {[%emt 0:0:0]} c5 {[%emt 0:0:3]} 6. 0-0 {[%emt 0:0:5]
} a6 {[%emt 0:0:3]} 7. a4 {[%emt 0:0:1]} Nc6 {[%emt 0:0:5]} 8. Qe2 {[%emt 0:0:1]} Be7 {[%emt 0:0:16]} 9. Rd1 {[%emt 0:0:10]} Qc7 {[%emt 0:0:7]
} 10. Nc3 {[%emt 0:0:54]} 0-0 {[%emt 0:0:15]} 11. dxc5 {[%emt 0:0:40]
} Bxc5 {[%emt 0:0:18]} 12. h3 {[%emt 0:0:59]} b6 {[%emt 0:0:0]} 13. e4 {[%emt 0:0:32]} Bb7 {[%emt 0:2:42]} 14. e5 {[%emt 0:0:24]} Nd7 {[%emt 0:0:10]
} 15. Bf4 {[%emt 0:0:19]} Ne7 {[%emt 0:0:52]} 16. Ng5 {[%emt 0:0:0]} Qc6 {[%emt 0:4:3]} 17. Qg4 {[%emt 0:5:34]} Ng6 {[%emt 0:1:32]} 18. Nxe6 {[%emt 0:0:15]} fxe6 {[%emt 0:0:59]} 19. Bxe6+ {[%emt 0:0:6]} Kh8 {[%emt 0:0:11]
} 20. Bxd7 {[%emt 0:0:2]} Qxg2+ {[%emt 0:0:56]} 21. Qxg2 {[%emt 0:0:1]
} Bxg2 {[%emt 0:0:2]} 22. Bg3 {[%emt 0:0:55]} Bb7 {[%emt 0:0:0]} 23. Bg4 {[%emt 0:1:23]} Bc6 {[%emt 0:0:50]} 24. Nd5 {[%emt 0:0:49]} Rad8 {[%emt 0:0:30]} 25. Nc7 {[%emt 0:0:1]} Rxd1+ {[%emt 0:0:27]} 26. Rxd1 {[%emt 0:0:0]} Bxa4 {[%emt 0:0:7]} 27. Ra1 {[%emt 0:0:55]} Bc6 {[%emt 0:0:0]} 28. Ne6 {[%emt 0:0:13]} Re8 {[%emt 0:0:19]} 29. Nxc5 {[%emt 0:0:4]} bxc5 {[%emt 0:0:3]} 30. Rxa6 {[%emt 0:0:4]} Be4 {[%emt 0:1:39]} 31. f4 {[%emt 0:0:24]
} Ne7 {[%emt 0:0:37]} 32. Re6 {[%emt 0:0:27]} Bd5 {[%emt 0:0:0]} 33. Rd6 {[%emt 0:0:4]} Be4 {[%emt 0:0:7]} 34. Bf2 {[%emt 0:0:28]} c4 {[%emt 0:0:11]} 35. Bb6 {[%emt 0:0:15]} Nf5 {[%emt 0:0:21]} 36. Rd8 {[%emt 0:0:36]
} Rxd8 {[%emt 0:0:4]} 37. Bxd8 {[%emt 0:0:1]} Kg8 {[%emt 0:0:0]} 38. Kf2 {[%emt 0:0:2]} Kf7 {[%emt 0:0:2]} 39. Bf3 {[%emt 0:0:27]} Bd3 {[%emt 0:1:26]} 40. Bd5+ {[%emt 0:0:0]} Ke8 {[%emt 0:0:1]} 41. Bb6 {[%emt 0:0:2]
} Ne7 {[%emt 0:0:13]} 42. Be6 {[%emt 0:0:9]} g6 {[%emt 0:0:0]} 43. Ke3 {[%emt 0:0:8]} Nf5+ {[%emt 0:0:30]} 44. Kd2 {[%emt 0:0:0]} Ke7 {[%emt 0:0:10]} 45. Bg8 {[%emt 0:0:1]} h6 {[%emt 0:0:10]} 46. b3 {[%emt 0:0:13]
} Bf1 {[%emt 0:0:5]} 47. Bxc4 {[%emt 0:0:33]} Bxh3 {[%emt 0:0:0]} 48. Bc5+ {[%emt 0:0:17]} Kd8 {[%emt 0:0:15]} 49. Kd3 {[%emt 0:0:17]} Bf1+ {[%emt 0:0:14]} 50. Ke4 {[%emt 0:0:26]} Bxc4 {[%emt 0:0:14]} 51. bxc4 {[%emt 0:0:1]
} Kd7 {[%emt 0:0:3]} 52. Kd5 {[%emt 0:0:8]} h5 {[%emt 0:0:0]} 53. e6+ {[%emt 0:0:2]} Ke8 {[%emt 0:0:2]} 54. Ke5 {[%emt 0:0:12]} h4 {[%emt 0:0:9]} 55. Bg1 {[%emt 0:0:11]} Ke7 {[%emt 0:0:6]} 56. c5 {[%emt 0:0:0]} Ng7 {[%emt 0:0:9]} 57. Bf2 {[%emt 0:0:14]} Nxe6 {[%emt 0:0:28]} 58. Bxh4+ {[%emt 0:0:1]} Kd7 {[%emt 0:0:38]} 59. c6+ {[%emt 0:0:3]} 1-0

[Event "FIDE World Rapid-ch Open 2018"]
[White "Perdomo, Carlos Andres"]
[Black "Ahmed Hassan Abdillahi"]
[Site "St. Petersburg"]
[Round "15.97"]
[Annotator "NA"]
[Result "1-0"]
[Date "2018.12.28"]
[WhiteElo "2301"]
[BlackElo "1570"]
[PlyCount "89"]
[TimeControl "900+10"]

1. c4 {[%emt 0:0:0]} b5 {[%emt 0:0:0]} 2. cxb5 {[%emt 0:0:1]} Bb7 {[%emt 0:0:0]
} 3. Nc3 {[%emt 0:0:9]} e5 {[%emt 0:0:4]} 4. d4 {[%emt 0:0:0]} e4 {[%emt 0:0:27]} 5. d5 {[%emt 0:0:41]} Bb4 {[%emt 0:0:3]} 6. Qd4 {[%emt 0:0:10]
} Qe7 {[%emt 0:0:24]} 7. Qxg7 {[%emt 0:2:15]} Qf6 {[%emt 0:0:0]} 8. Qxf6 {[%emt 0:0:47]} Nxf6 {[%emt 0:0:1]} 9. Bd2 {[%emt 0:0:6]} Rg8 {[%emt 0:0:51]} 10. Nxe4 {[%emt 0:0:33]} Bxd2+ {[%emt 0:0:16]} 11. Nxd2 {[%emt 0:0:2]
} Bxd5 {[%emt 0:0:2]} 12. f3 {[%emt 0:0:10]} d6 {[%emt 0:0:0]} 13. e4 {[%emt 0:0:2]} Be6 {[%emt 0:0:6]} 14. Ne2 {[%emt 0:0:20]} Nbd7 {[%emt 0:0:1]} 15. Nd4 {[%emt 0:0:20]} Nc5 {[%emt 0:0:11]} 16. a4 {[%emt 0:0:0]} h5 {[%emt 0:0:25]} 17. b4 {[%emt 0:0:4]} Nb7 {[%emt 0:0:11]} 18. Rc1 {[%emt 0:0:6]} Kd7 {[%emt 0:0:7]} 19. Kf2 {[%emt 0:0:18]} Rac8 {[%emt 0:0:27]
} 20. Be2 {[%emt 0:0:28]} h4 {[%emt 0:0:22]} 21. g4 {[%emt 0:0:0]} Nd8 {[%emt 0:0:15]} 22. h3 {[%emt 0:0:11]} c5 {[%emt 0:0:5]} 23. bxc6+ {[%emt 0:0:3]} Nxc6 {[%emt 0:0:3]} 24. Rxc6 {[%emt 0:0:8]} Rxc6 {[%emt 0:0:4]
} 25. Bb5 {[%emt 0:0:2]} d5 {[%emt 0:0:40]} 26. e5 {[%emt 0:0:0]} Nh7 {[%emt 0:1:2]} 27. Bxc6+ {[%emt 0:0:11]} Ke7 {[%emt 0:0:2]} 28. f4 {[%emt 0:0:13]} Rc8 {[%emt 0:0:7]} 29. b5 {[%emt 0:0:15]} Nf8 {[%emt 0:0:15]
} 30. f5 {[%emt 0:0:10]} Bd7 {[%emt 0:0:1]} 31. N2f3 {[%emt 0:0:0]} a6 {[%emt 0:0:23]} 32. Nxh4 {[%emt 0:0:10]} axb5 {[%emt 0:0:1]} 33. axb5 {[%emt 0:0:1]} Bxc6 {[%emt 0:0:3]} 34. Nxc6+ {[%emt 0:0:2]} Kd7 {[%emt 0:0:1]
} 35. Ra1 {[%emt 0:0:7]} Kc7 {[%emt 0:0:3]} 36. Ra7+ {[%emt 0:0:10]
} Kb6 {[%emt 0:0:1]} 37. Rxf7 {[%emt 0:0:2]} Ra8 {[%emt 0:0:0]} 38. e6 {[%emt 0:0:30]} Kxb5 {[%emt 0:0:10]} 39. Nd4+ {[%emt 0:0:2]} Kc5 {[%emt 0:0:1]} 40. Nhf3 {[%emt 0:0:1]} Kd6 41. g5 {[%emt 0:0:9]} Ra2+ {[%emt 0:0:37]} 42. Kg3 Ra8 43. g6 {[%emt 0:0:18]} Nxg6 {[%emt 0:0:5]} 44. fxg6 {[%emt 0:0:2]} Rg8 {[%emt 0:0:1]} 45. g7 {[%emt 0:0:6]} 1-0

[Event "FIDE World Rapid-ch Open 2018"]
[White "Ovchinnikov, Vsevolod"]
[Black "Alsulaymi, Abdullah M"]
[Site "St. Petersburg"]
[Round "15.98"]
[Annotator "NA"]
[Result "1-0"]
[Date "2018.12.28"]
[WhiteElo "2329"]
[BlackElo "1833"]
[PlyCount "68"]
[TimeControl "900+10"]

1. Nf3 {[%emt 0:0:0]} Nf6 {[%emt 0:0:0]} 2. c4 {[%emt 0:0:0]} g6 {[%emt 0:0:6]
} 3. b3 {[%emt 0:0:0]} Bg7 {[%emt 0:0:2]} 4. Bb2 {[%emt 0:0:0]} 0-0 {[%emt 0:0:3]} 5. g3 {[%emt 0:0:0]} d6 {[%emt 0:0:10]} 6. d4 {[%emt 0:0:2]
} Bf5 {[%emt 0:0:15]} 7. Bg2 {[%emt 0:0:10]} Nc6 {[%emt 0:0:0]} 8. d5 {[%emt 0:0:53]} Nb4 {[%emt 0:0:53]} 9. Nd4 {[%emt 0:0:4]} Ne4 {[%emt 0:0:40]
} 10. a3 {[%emt 0:4:41]} Bxd4 {[%emt 0:1:1]} 11. Bxd4 {[%emt 0:0:2]
} Na6 {[%emt 0:4:40]} 12. g4 {[%emt 0:0:22]} Bxg4 {[%emt 0:0:0]} 13. Bxe4 {[%emt 0:0:4]} Nc5 {[%emt 0:0:15]} 14. Bg2 {[%emt 0:0:12]} e5 {[%emt 0:0:15]} 15. Be3 {[%emt 0:1:17]} f5 {[%emt 0:0:18]} 16. h3 {[%emt 0:0:0]} Bh5 {[%emt 0:0:6]} 17. Nc3 {[%emt 0:1:3]} Nd7 {[%emt 0:0:36]} 18. Bf3 {[%emt 0:0:31]} f4 {[%emt 0:0:2]} 19. Bd2 {[%emt 0:0:4]} Nf6 {[%emt 0:0:0]} 20. Qc2 {[%emt 0:0:18]} Qe7 {[%emt 0:0:17]} 21. 0-0-0 {[%emt 0:0:49]
} a5 {[%emt 0:0:28]} 22. Ne4 {[%emt 0:0:43]} Bxf3 {[%emt 0:0:12]} 23. exf3 {[%emt 0:0:8]
} c6 {[%emt 0:0:6]} 24. dxc6 {[%emt 0:0:38]} bxc6 {[%emt 0:0:0]} 25. Bc3 {[%emt 0:0:30]} d5 {[%emt 0:0:29]} 26. Nxf6+ {[%emt 0:0:2]} Rxf6 {[%emt 0:0:5]} 27. cxd5 {[%emt 0:0:3]} cxd5 {[%emt 0:0:7]} 28. Rxd5 {[%emt 0:0:16]} Rc8 {[%emt 0:0:15]} 29. Kb2 {[%emt 0:0:48]} Rfc6 {[%emt 0:0:0]} 30. Rd3 {[%emt 0:0:3]} Qc5 {[%emt 0:0:32]} 31. Rhd1 {[%emt 0:0:25]} Qb6 {[%emt 0:0:4]} 32. Qd2 {[%emt 0:1:0]} a4 {[%emt 0:0:25]} 33. b4 {[%emt 0:0:6]
} Kf7 {[%emt 0:0:56]} 34. Rd7+ {[%emt 0:0:52]} Ke6 {[%emt 0:0:0]} 1-0

[Event "FIDE World Rapid-ch Open 2018"]
[White "Al Turky, Fahad A"]
[Black "Mamatov, Melis"]
[Site "St. Petersburg"]
[Round "15.99"]
[Annotator "NA"]
[Result "0-1"]
[Date "2018.12.28"]
[WhiteElo "1836"]
[BlackElo "2223"]
[PlyCount "96"]
[TimeControl "900+10"]

1. e4 {[%emt 0:0:0]} c5 {[%emt 0:0:0]} 2. Nf3 {[%emt 0:0:0]} d6 {[%emt 0:0:0]} 3. d4 {[%emt 0:0:0]} cxd4 {[%emt 0:0:0]} 4. Nxd4 {[%emt 0:0:0]} Nf6 {[%emt 0:0:0]} 5. Nc3 {[%emt 0:0:0]} e5 {[%emt 0:0:0]} 6. Nf3 {[%emt 0:0:6]
} Be6 {[%emt 0:0:7]} 7. Bb5+ {[%emt 0:0:6]} Nc6 {[%emt 0:0:0]} 8. 0-0 {[%emt 0:0:4]} a6 {[%emt 0:0:2]} 9. Ba4 {[%emt 0:0:21]} h6 {[%emt 0:0:11]
} 10. Re1 {[%emt 0:0:12]} Be7 {[%emt 0:0:2]} 11. h3 {[%emt 0:0:0]} 0-0 {[%emt 0:0:10]} 12. Bb3 {[%emt 0:0:3]} b5 {[%emt 0:0:22]} 13. Nd5 {[%emt 0:0:41]} Rc8 {[%emt 0:0:40]} 14. c3 {[%emt 0:1:20]} Na5 {[%emt 0:0:0]} 15. Bc2 {[%emt 0:0:38]} Nxd5 {[%emt 0:1:23]} 16. exd5 {[%emt 0:0:4]
} Bd7 {[%emt 0:0:1]} 17. Qe2 {[%emt 0:1:33]} Re8 {[%emt 0:3:7]} 18. a4 {[%emt 0:1:29]
} f5 {[%emt 0:0:20]} 19. Bd2 {[%emt 0:0:45]} Bf6 {[%emt 0:0:0]} 20. b4 {[%emt 0:1:31]} Nc4 {[%emt 0:0:9]} 21. Bb3 {[%emt 0:0:13]} Nb2 {[%emt 0:1:49]} 22. a5 {[%emt 0:0:38]} Nc4 {[%emt 0:0:14]} 23. Rac1 {[%emt 0:1:0]
} Rc7 {[%emt 0:0:45]} 24. Be3 {[%emt 0:1:26]} Qa8 {[%emt 0:0:0]} 25. Bxc4 {[%emt 0:0:33]} Rxc4 {[%emt 0:0:10]} 26. Red1 {[%emt 0:0:23]} Rec8 {[%emt 0:0:3]} 27. Qb2 {[%emt 0:0:28]} f4 {[%emt 0:1:19]} 28. Bb6 {[%emt 0:1:29]
} e4 {[%emt 0:0:23]} 29. Nd2 {[%emt 0:0:17]} Bxc3 {[%emt 0:0:0]} 30. Rxc3 {[%emt 0:0:35]} Rxc3 {[%emt 0:0:1]} 31. Nxe4 {[%emt 0:0:3]} Rc2 {[%emt 0:0:6]} 32. Qd4 {[%emt 0:0:28]} R8c4 {[%emt 0:0:25]} 33. Qd3 {[%emt 0:0:14]
} Qf8 {[%emt 0:0:7]} 34. f3 {[%emt 0:2:17]} Bf5 {[%emt 0:0:0]} 35. Re1 {[%emt 0:0:44]} Rb2 {[%emt 0:0:42]} 36. Qf1 Bxe4 {[%emt 0:0:21]
} 37. fxe4 {[%emt 0:0:37]} Rcc2 {[%emt 0:0:2]} 38. Kh1 {[%emt 0:0:21]} Rxg2 {[%emt 0:0:9]} 39. Qxg2 {[%emt 0:0:9]} Rxg2 40. Kxg2 {[%emt 0:0:0]} Qf6 {[%emt 0:0:13]
} 41. Rf1 {[%emt 0:0:12]} g5 {[%emt 0:0:3]} 42. Rf3 {[%emt 0:0:0]} Qb2+ 43. Rf2 {[%emt 0:0:16]} Qxb4 {[%emt 0:0:0]} 44. Kf3 {[%emt 0:0:0]} Qc3+ {[%emt 0:0:0]} 45. Kg2 {[%emt 0:0:20]} Qg3+ {[%emt 0:0:0]} 46. Kf1 {[%emt 0:0:2]} Qxh3+ {[%emt 0:0:0]} 47. Ke2 {[%emt 0:0:3]} Qc3 {[%emt 0:0:0]
} 48. Rf3 {[%emt 0:0:6]} Qc2+ {[%emt 0:0:0]} 0-1

[Event "FIDE World Rapid-ch Open 2018"]
[White "khayat, Abdullah F"]
[Black "Vorotnikov, Vladislav V"]
[Site "St. Petersburg"]
[Round "15.100"]
[Annotator "NA"]
[Result "0-1"]
[Date "2018.12.28"]
[WhiteElo "1723"]
[BlackElo "2417"]
[PlyCount "90"]
[TimeControl "900+10"]

1. d4 {[%emt 0:0:0]} Nf6 {[%emt 0:0:0]} 2. Nf3 {[%emt 0:0:0]} d6 {[%emt 0:0:0]
} 3. g3 {[%emt 0:0:0]} c6 {[%emt 0:0:5]} 4. Bg2 {[%emt 0:0:0]} h6 {[%emt 0:0:4]} 5. 0-0 {[%emt 0:0:3]} Bf5 {[%emt 0:0:2]} 6. c3 {[%emt 0:0:2]
} e6 {[%emt 0:0:11]} 7. Re1 {[%emt 0:0:2]} Bh7 {[%emt 0:0:18]
} 8. Nbd2 {[%emt 0:0:5]} d5 {[%emt 0:0:48]} 9. Qb3 {[%emt 0:0:9]} Qb6 {[%emt 0:0:7]
} 10. Qxb6 {[%emt 0:1:45]} axb6 {[%emt 0:0:2]} 11. e3 {[%emt 0:0:3]
} Nbd7 {[%emt 0:0:16]} 12. c4 {[%emt 0:0:3]} Bb4 {[%emt 0:0:0]} 13. cxd5 {[%emt 0:0:15]} exd5 {[%emt 0:0:4]} 14. a3 {[%emt 0:0:3]} 0-0 {[%emt 0:0:10]} 15. Bh3 {[%emt 0:0:29]} Rfe8 {[%emt 0:0:44]} 16. Rd1 {[%emt 0:0:26]
} b5 {[%emt 0:0:15]} 17. Nf1 {[%emt 0:0:23]} Bc2 {[%emt 0:0:0]} 18. Rd2 {[%emt 0:1:34]} Be4 {[%emt 0:0:46]} 19. Bg2 {[%emt 0:1:32]} Nb6 {[%emt 0:0:41]} 20. Ne5 {[%emt 0:0:30]} Bxg2 {[%emt 0:0:11]} 21. Kxg2 {[%emt 0:0:5]
} Bxd2 {[%emt 0:0:3]} 22. Bxd2 {[%emt 0:0:4]} Nc4 {[%emt 0:0:0]} 23. b4 {[%emt 0:0:5]} Rxa3 {[%emt 0:0:26]} 24. Rxa3 {[%emt 0:0:17]} Nxa3 {[%emt 0:0:2]} 25. Nd3 {[%emt 0:0:8]} Nc4 {[%emt 0:0:8]} 26. Nc5 {[%emt 0:0:8]
} b6 {[%emt 0:0:6]} 27. Nd3 {[%emt 0:0:6]} Ra8 {[%emt 0:0:0]} 28. h4 {[%emt 0:0:38]} Ne4 {[%emt 0:0:23]} 29. Be1 {[%emt 0:0:6]} Ra3 {[%emt 0:0:18]} 30. Nc1 {[%emt 0:4:18]} Ra1 {[%emt 0:0:9]} 31. Nd3 {[%emt 0:0:5]
} Rd1 {[%emt 0:0:4]} 32. f3 {[%emt 0:0:10]} Ned6 {[%emt 0:0:0]} 33. Ne5 {[%emt 0:3:14]} Rxe1 {[%emt 0:0:5]} 34. Nxc6 {[%emt 0:0:18]} Nxe3+ {[%emt 0:0:32]} 35. Nxe3 {[%emt 0:0:5]} Rxe3 {[%emt 0:0:2]} 36. Kf2 {[%emt 0:0:1]} Re6 {[%emt 0:0:32]} 37. Ne5 {[%emt 0:0:30]} Nc4 {[%emt 0:0:0]} 38. Nd3 {[%emt 0:0:12]} g5 {[%emt 0:0:12]} 39. h5 {[%emt 0:0:5]} Re3 {[%emt 0:0:11]
} 40. Ne5 {[%emt 0:0:18]} Rb3 {[%emt 0:0:12]} 41. Nc6 {[%emt 0:0:0]} Rb2+ {[%emt 0:0:7]} 42. Ke1 {[%emt 0:0:3]} Kf8 {[%emt 0:0:12]} 43. f4 {[%emt 0:0:5]} g4 {[%emt 0:0:11]} 44. Ne5 {[%emt 0:0:12]} Nxe5 {[%emt 0:0:0]} 45. fxe5 {[%emt 0:0:2]} Rxb4 {[%emt 0:0:3]} 0-1